{"text_format":"3","workbook":"xlsx","n_sheets":5,"sheets":["סקירת המסיבה","רשימת אורחים","מזון ומשקאות","דברים חיוניים אחרים","סידור ישיבה"],"not_rendered":{"defined_names":9},"read":"whole","date_system":"1900"}

{"sheet":"סקירת המסיבה","index":0,"n_rows":22,"n_cols":8,"rows_kept":22,"merged":[[6,3,6,4],[6,5,6,6]]}
["הזן פריטים בודדים בגליונות 'מזון ומשקאות' ו'דברים חיוניים אחרים' כדי לחשב אוטומטית את העלות הכוללת."]
[]
[null,"סקירת המסיבה"]
[]
[]
[null,"אירוע",null,"סיכום אורחים",{"$nulls":3},{"$f":"\"אישורי הגעה שטרם התקבלו:  \"&OutstandingRSVPs","v":"אישורי הגעה שטרם התקבלו:  2"}]
[null,"יום הולדת 75 לסבתא",null,"סקירת פרטים לאישור הגעה",null,"עלות לכל אורח",null,"סכום תקציב"]
[{"$nulls":3},"אורחים שאושרו","סה\"כ שאישרו","אוכל","אחר","סך הכל"]
[null,"תאריך",null,"מבוגרים",{"$f":"SUMIF(GuestTable[מגיע?],\"=כן\",GuestTable[מבוגרים])","v":26},{"$f":"FoodTable[[#Totals],[עלות לכל מבוגר]]","v":{"v":12.690089084110037,"d":"₪ 12.69"}},{"$f":"EssentialCostPerGuest","v":{"v":18.695652173913043,"d":"₪ 18.70"}},{"$f":"(AttendeeSummary[[#This Row],[אוכל]]+AttendeeSummary[[#This Row],[אחר]])*AdultTotal","v":{"v":816.0292727086002,"d":"₪ 816.03"}}]
[null,"2011-07-14",null,"ילדים",{"$f":"SUMIF(GuestTable[מגיע?],\"=כן\",GuestTable[ילדים])","v":20},{"$f":"FoodTable[[#Totals],[עלות לכל ילד]]","v":{"v":7.252884190656953,"d":"₪ 7.25"}},{"$f":"EssentialCostPerGuest","v":{"v":18.695652173913043,"d":"₪ 18.70"}},{"$f":"(AttendeeSummary[[#This Row],[אוכל]]+AttendeeSummary[[#This Row],[אחר]])*ChildrenTotal","v":{"v":518.9707272914,"d":"₪ 518.97"}}]
[{"$nulls":3},"סך הכל",{"$f":"SUBTOTAL(109,AttendeeSummary[סה\"כ שאישרו])","v":46},{"$f":"\"ממוצע   \"&TEXT(SUBTOTAL(101,AttendeeSummary[אוכל]),\"₪ #,##0.00\")","v":"ממוצע   ₪ 9.97"},{"$f":"\"ממוצע   \"&TEXT(SUBTOTAL(101,AttendeeSummary[אחר]),\"₪ #,##0.00\")","v":"ממוצע   ₪ 18.70"},{"$f":"SUBTOTAL(109,AttendeeSummary[סך הכל])","v":{"v":1335,"d":"₪ 1,335.00"}}]
[null,"שעה"]
[null,"14:00 עד 16:00"]
[]
[null,"מיקום"]
[null,"הבית של דודה אסתר",null,"סיכום תקציב"]
[{"$nulls":3},"פריט","ספירה","סכום תקציב","עלות כוללת","הפרש"]
[{"$nulls":3},"מזון ומשקאות",{"$f":"COUNTA(FoodTable[פריט מזון או משקה])","v":18},{"v":500,"d":"₪ 500.00"},{"$f":"FoodTable[[#Totals],[עלות כוללת]]","v":{"v":475,"d":"₪ 475.00"}},{"$f":"BudgetOverview[[#This Row],[סכום תקציב]]-BudgetOverview[[#This Row],[עלות כוללת]]","v":{"v":25,"d":"₪ 25.00"}}]
[{"$nulls":3},{"$f":"Table1Header","v":"ציוד וחומרים"},{"$f":"COUNTA(Table1Budget[ציוד וחומרים])","v":7},{"v":400,"d":"₪ 400.00"},{"$f":"Table1Budget[[#Totals],[עלות]]","v":{"v":400,"d":"₪ 400.00"}},{"$f":"BudgetOverview[[#This Row],[סכום תקציב]]-BudgetOverview[[#This Row],[עלות כוללת]]","v":{"v":0,"d":"₪ 0.00"}}]
[{"$nulls":3},{"$f":"Table2Header","v":"קישוטים"},{"$f":"COUNTA(Table2Budget[קישוטים])","v":4},{"v":150,"d":"₪ 150.00"},{"$f":"Table2Budget[[#Totals],[עלות]]","v":{"v":175,"d":"₪ 175.00"}},{"$f":"BudgetOverview[[#This Row],[סכום תקציב]]-BudgetOverview[[#This Row],[עלות כוללת]]","v":{"v":-25,"d":"₪ -25.00"}}]
[{"$nulls":3},{"$f":"Table3Header","v":"אחר"},{"$f":"COUNTA(Table3Budget[אחר])","v":4},{"v":300,"d":"₪ 300.00"},{"$f":"Table3Budget[[#Totals],[עלות]]","v":{"v":285,"d":"₪ 285.00"}},{"$f":"BudgetOverview[[#This Row],[סכום תקציב]]-BudgetOverview[[#This Row],[עלות כוללת]]","v":{"v":15,"d":"₪ 15.00"}}]
[{"$nulls":3},"סך הכל",{"$f":"SUBTOTAL(109,BudgetOverview[ספירה])","v":33},{"$f":"SUBTOTAL(109,BudgetOverview[סכום תקציב])","v":{"v":1350,"d":"₪ 1,350.00"}},{"$f":"SUBTOTAL(109,BudgetOverview[עלות כוללת])","v":{"v":1335,"d":"₪ 1,335.00"}},{"$f":"BudgetOverview[[#Totals],[סכום תקציב]]-BudgetOverview[[#Totals],[עלות כוללת]]","v":{"v":15,"d":"₪ 15.00"}}]

{"sheet":"רשימת אורחים","index":1,"n_rows":22,"n_cols":12,"rows_kept":22}
[]
[]
[null,"רשימת אורחים"]
[]
[]
[]
[null,"שם","כתובת","עיר","מדינה","מיקוד","טלפון","דואר אלקטרוני","מגיע?","ילדים","מבוגרים","סך הכל"]
[null,"משפחה 1","כתובת 1","עיר 1","מדינה 1","מיקוד 1","טלפון 1","דואר אלקטרוני 1","לא",2,2,{"$f":"SUM(GuestTable[[#This Row],[ילדים]:[מבוגרים]])","v":4}]
[null,"משפחה 2","כתובת 2","עיר 2","מדינה 2","מיקוד 2","טלפון 2","דואר אלקטרוני 2","כן",1,1,{"$f":"SUM(GuestTable[[#This Row],[ילדים]:[מבוגרים]])","v":2}]
[null,"משפחה 3","כתובת 3","עיר 3","מדינה 3","מיקוד 3","טלפון 3","דואר אלקטרוני 3","כן",3,3,{"$f":"SUM(GuestTable[[#This Row],[ילדים]:[מבוגרים]])","v":6}]
[null,"משפחה 4","כתובת 4","עיר 4","מדינה 4","מיקוד 4","טלפון 4","דואר אלקטרוני 4",null,null,2,{"$f":"SUM(GuestTable[[#This Row],[ילדים]:[מבוגרים]])","v":2}]
[null,"משפחה 5","כתובת 5","עיר 5","מדינה 5","מיקוד 5","טלפון 5","דואר אלקטרוני 5","כן",4,3,{"$f":"SUM(GuestTable[[#This Row],[ילדים]:[מבוגרים]])","v":7}]
[null,"משפחה 6","כתובת 6","עיר 6","מדינה 6","מיקוד 6","טלפון 6","דואר אלקטרוני 6","כן",2,2,{"$f":"SUM(GuestTable[[#This Row],[ילדים]:[מבוגרים]])","v":4}]
[null,"משפחה 7","כתובת 7","עיר 7","מדינה 7","מיקוד 7","טלפון 7","דואר אלקטרוני 7","כן",1,4,{"$f":"SUM(GuestTable[[#This Row],[ילדים]:[מבוגרים]])","v":5}]
[null,"משפחה 8","כתובת 8","עיר 8","מדינה 8","מיקוד 8","טלפון 8","דואר אלקטרוני 8","לא",5,3,{"$f":"SUM(GuestTable[[#This Row],[ילדים]:[מבוגרים]])","v":8}]
[null,"משפחה 9","כתובת 9","עיר 9","מדינה 9","מיקוד 9","טלפון 9","דואר אלקטרוני 9","כן",3,2,{"$f":"SUM(GuestTable[[#This Row],[ילדים]:[מבוגרים]])","v":5}]
[null,"משפחה 10","כתובת 10","עיר 10","מדינה 10","מיקוד 10","טלפון 10","דואר אלקטרוני 10","כן",null,4,{"$f":"SUM(GuestTable[[#This Row],[ילדים]:[מבוגרים]])","v":4}]
[null,"משפחה 11","כתובת 11","עיר 11","מדינה 11","מיקוד 11","טלפון 11","דואר אלקטרוני 11","כן",3,5,{"$f":"SUM(GuestTable[[#This Row],[ילדים]:[מבוגרים]])","v":8}]
[null,"משפחה 12","כתובת 12","עיר 12","מדינה 12","מיקוד 12","טלפון 12","דואר אלקטרוני 12","לא",2,3,{"$f":"SUM(GuestTable[[#This Row],[ילדים]:[מבוגרים]])","v":5}]
[null,"משפחה 13","כתובת 13","עיר 13","מדינה 13","מיקוד 13","טלפון 13","דואר אלקטרוני 13","כן",3,2,{"$f":"SUM(GuestTable[[#This Row],[ילדים]:[מבוגרים]])","v":5}]
[null,"משפחה 14","כתובת 14","עיר 14","מדינה 14","מיקוד 14","טלפון 14","דואר אלקטרוני 14","לא",null,1,{"$f":"SUM(GuestTable[[#This Row],[ילדים]:[מבוגרים]])","v":1}]
[null,"משפחה 15","כתובת 15","עיר 15","מדינה 15","מיקוד 15","טלפון 15","דואר אלקטרוני 15",null,null,2,{"$f":"SUM(GuestTable[[#This Row],[ילדים]:[מבוגרים]])","v":2}]

{"sheet":"מזון ומשקאות","index":2,"n_rows":25,"n_cols":10,"rows_kept":25}
[]
[]
[null,"מזון ומשקאות"]
[]
[null,"הזן עלות ומס' משוער של מנות על-מנת לחשב באופן אוטומטי את מספר המנות הכולל ועלות למנה בהתבסס על מספר המשתתפים"]
[null,"פריט מזון או משקה","עלות כוללת","מנות לכל ילד","מנות לכל מבוגר","סה\"כ מנות","עלות לכל מנה","עלות לכל ילד","עלות לכל מבוגר","הערות"]
[null,"משקאות מוגזים",{"v":15,"d":"₪ 15.00"},0.5,2,{"$f":"(FoodTable[[#This Row],[מנות לכל ילד]]*ChildrenTotal)+(FoodTable[[#This Row],[מנות לכל מבוגר]]*AdultTotal)","v":62},{"$f":"IFERROR(FoodTable[[#This Row],[עלות כוללת]]/FoodTable[[#This Row],[סה\"כ מנות]],\"\")","v":{"v":0.24193548387096775,"d":"₪ 0.24"}},{"$f":"IFERROR(FoodTable[[#This Row],[עלות לכל מנה]]*FoodTable[[#This Row],[מנות לכל ילד]],\"\")","v":{"v":0.12096774193548387,"d":"₪ 0.12"}},{"$f":"IFERROR(FoodTable[[#This Row],[עלות לכל מנה]]*FoodTable[[#This Row],[מנות לכל מבוגר]],\"\")","v":{"v":0.4838709677419355,"d":"₪ 0.48"}},"2 בקבוקי ליטר"]
[null,"בקבוקי מיץ",{"v":15,"d":"₪ 15.00"},2,0,{"$f":"(FoodTable[[#This Row],[מנות לכל ילד]]*ChildrenTotal)+(FoodTable[[#This Row],[מנות לכל מבוגר]]*AdultTotal)","v":40},{"$f":"IFERROR(FoodTable[[#This Row],[עלות כוללת]]/FoodTable[[#This Row],[סה\"כ מנות]],\"\")","v":{"v":0.375,"d":"₪ 0.38"}},{"$f":"IFERROR(FoodTable[[#This Row],[עלות לכל מנה]]*FoodTable[[#This Row],[מנות לכל ילד]],\"\")","v":{"v":0.75,"d":"₪ 0.75"}},{"$f":"IFERROR(FoodTable[[#This Row],[עלות לכל מנה]]*FoodTable[[#This Row],[מנות לכל מבוגר]],\"\")","v":{"v":0,"d":"₪ 0.00"}},"תפוחים וענבים"]
[null,"יין",{"v":50,"d":"₪ 50.00"},0,2,{"$f":"(FoodTable[[#This Row],[מנות לכל ילד]]*ChildrenTotal)+(FoodTable[[#This Row],[מנות לכל מבוגר]]*AdultTotal)","v":52},{"$f":"IFERROR(FoodTable[[#This Row],[עלות כוללת]]/FoodTable[[#This Row],[סה\"כ מנות]],\"\")","v":{"v":0.9615384615384616,"d":"₪ 0.96"}},{"$f":"IFERROR(FoodTable[[#This Row],[עלות לכל מנה]]*FoodTable[[#This Row],[מנות לכל ילד]],\"\")","v":{"v":0,"d":"₪ 0.00"}},{"$f":"IFERROR(FoodTable[[#This Row],[עלות לכל מנה]]*FoodTable[[#This Row],[מנות לכל מבוגר]],\"\")","v":{"v":1.9230769230769231,"d":"₪ 1.92"}}]
[null,"עוגה",{"v":75,"d":"₪ 75.00"},1,1,{"$f":"(FoodTable[[#This Row],[מנות לכל ילד]]*ChildrenTotal)+(FoodTable[[#This Row],[מנות לכל מבוגר]]*AdultTotal)","v":46},{"$f":"IFERROR(FoodTable[[#This Row],[עלות כוללת]]/FoodTable[[#This Row],[סה\"כ מנות]],\"\")","v":{"v":1.6304347826086956,"d":"₪ 1.63"}},{"$f":"IFERROR(FoodTable[[#This Row],[עלות לכל מנה]]*FoodTable[[#This Row],[מנות לכל ילד]],\"\")","v":{"v":1.6304347826086956,"d":"₪ 1.63"}},{"$f":"IFERROR(FoodTable[[#This Row],[עלות לכל מנה]]*FoodTable[[#This Row],[מנות לכל מבוגר]],\"\")","v":{"v":1.6304347826086956,"d":"₪ 1.63"}},"להזמין מהמאפיה המקומית"]
[null,"גלידה",{"v":20,"d":"₪ 20.00"},1,1.5,{"$f":"(FoodTable[[#This Row],[מנות לכל ילד]]*ChildrenTotal)+(FoodTable[[#This Row],[מנות לכל מבוגר]]*AdultTotal)","v":59},{"$f":"IFERROR(FoodTable[[#This Row],[עלות כוללת]]/FoodTable[[#This Row],[סה\"כ מנות]],\"\")","v":{"v":0.3389830508474576,"d":"₪ 0.34"}},{"$f":"IFERROR(FoodTable[[#This Row],[עלות לכל מנה]]*FoodTable[[#This Row],[מנות לכל ילד]],\"\")","v":{"v":0.3389830508474576,"d":"₪ 0.34"}},{"$f":"IFERROR(FoodTable[[#This Row],[עלות לכל מנה]]*FoodTable[[#This Row],[מנות לכל מבוגר]],\"\")","v":{"v":0.5084745762711864,"d":"₪ 0.51"}}]
[null,"גביעי פודינג",{"v":15,"d":"₪ 15.00"},1,0,{"$f":"(FoodTable[[#This Row],[מנות לכל ילד]]*ChildrenTotal)+(FoodTable[[#This Row],[מנות לכל מבוגר]]*AdultTotal)","v":20},{"$f":"IFERROR(FoodTable[[#This Row],[עלות כוללת]]/FoodTable[[#This Row],[סה\"כ מנות]],\"\")","v":{"v":0.75,"d":"₪ 0.75"}},{"$f":"IFERROR(FoodTable[[#This Row],[עלות לכל מנה]]*FoodTable[[#This Row],[מנות לכל ילד]],\"\")","v":{"v":0.75,"d":"₪ 0.75"}},{"$f":"IFERROR(FoodTable[[#This Row],[עלות לכל מנה]]*FoodTable[[#This Row],[מנות לכל מבוגר]],\"\")","v":{"v":0,"d":"₪ 0.00"}},"לרכוש כוסות באריזה: וניל ושוקולד"]
[null,"פטריות ממולאות",{"v":32,"d":"₪ 32.00"},1,2,{"$f":"(FoodTable[[#This Row],[מנות לכל ילד]]*ChildrenTotal)+(FoodTable[[#This Row],[מנות לכל מבוגר]]*AdultTotal)","v":72},{"$f":"IFERROR(FoodTable[[#This Row],[עלות כוללת]]/FoodTable[[#This Row],[סה\"כ מנות]],\"\")","v":{"v":0.4444444444444444,"d":"₪ 0.44"}},{"$f":"IFERROR(FoodTable[[#This Row],[עלות לכל מנה]]*FoodTable[[#This Row],[מנות לכל ילד]],\"\")","v":{"v":0.4444444444444444,"d":"₪ 0.44"}},{"$f":"IFERROR(FoodTable[[#This Row],[עלות לכל מנה]]*FoodTable[[#This Row],[מנות לכל מבוגר]],\"\")","v":{"v":0.8888888888888888,"d":"₪ 0.89"}},"פטריות קטנות ממולאות גבינת שמנת ונקניקיות"]
[null,"ברוסקטה",{"v":22,"d":"₪ 22.00"},0,3,{"$f":"(FoodTable[[#This Row],[מנות לכל ילד]]*ChildrenTotal)+(FoodTable[[#This Row],[מנות לכל מבוגר]]*AdultTotal)","v":78},{"$f":"IFERROR(FoodTable[[#This Row],[עלות כוללת]]/FoodTable[[#This Row],[סה\"כ מנות]],\"\")","v":{"v":0.28205128205128205,"d":"₪ 0.28"}},{"$f":"IFERROR(FoodTable[[#This Row],[עלות לכל מנה]]*FoodTable[[#This Row],[מנות לכל ילד]],\"\")","v":{"v":0,"d":"₪ 0.00"}},{"$f":"IFERROR(FoodTable[[#This Row],[עלות לכל מנה]]*FoodTable[[#This Row],[מנות לכל מבוגר]],\"\")","v":{"v":0.8461538461538461,"d":"₪ 0.85"}},"עגבניות ובזיליקום "]
[null,"סלמון מעושן",{"v":50,"d":"₪ 50.00"},1,2,{"$f":"(FoodTable[[#This Row],[מנות לכל ילד]]*ChildrenTotal)+(FoodTable[[#This Row],[מנות לכל מבוגר]]*AdultTotal)","v":72},{"$f":"IFERROR(FoodTable[[#This Row],[עלות כוללת]]/FoodTable[[#This Row],[סה\"כ מנות]],\"\")","v":{"v":0.6944444444444444,"d":"₪ 0.69"}},{"$f":"IFERROR(FoodTable[[#This Row],[עלות לכל מנה]]*FoodTable[[#This Row],[מנות לכל ילד]],\"\")","v":{"v":0.6944444444444444,"d":"₪ 0.69"}},{"$f":"IFERROR(FoodTable[[#This Row],[עלות לכל מנה]]*FoodTable[[#This Row],[מנות לכל מבוגר]],\"\")","v":{"v":1.3888888888888888,"d":"₪ 1.39"}}]
[null,"מיני בייגל",{"v":20,"d":"₪ 20.00"},1,2,{"$f":"(FoodTable[[#This Row],[מנות לכל ילד]]*ChildrenTotal)+(FoodTable[[#This Row],[מנות לכל מבוגר]]*AdultTotal)","v":72},{"$f":"IFERROR(FoodTable[[#This Row],[עלות כוללת]]/FoodTable[[#This Row],[סה\"כ מנות]],\"\")","v":{"v":0.2777777777777778,"d":"₪ 0.28"}},{"$f":"IFERROR(FoodTable[[#This Row],[עלות לכל מנה]]*FoodTable[[#This Row],[מנות לכל ילד]],\"\")","v":{"v":0.2777777777777778,"d":"₪ 0.28"}},{"$f":"IFERROR(FoodTable[[#This Row],[עלות לכל מנה]]*FoodTable[[#This Row],[מנות לכל מבוגר]],\"\")","v":{"v":0.5555555555555556,"d":"₪ 0.56"}},"4 שקיות - מעורב"]
[null,"גבינת שמנת",{"v":10,"d":"₪ 10.00"},1,2,{"$f":"(FoodTable[[#This Row],[מנות לכל ילד]]*ChildrenTotal)+(FoodTable[[#This Row],[מנות לכל מבוגר]]*AdultTotal)","v":72},{"$f":"IFERROR(FoodTable[[#This Row],[עלות כוללת]]/FoodTable[[#This Row],[סה\"כ מנות]],\"\")","v":{"v":0.1388888888888889,"d":"₪ 0.14"}},{"$f":"IFERROR(FoodTable[[#This Row],[עלות לכל מנה]]*FoodTable[[#This Row],[מנות לכל ילד]],\"\")","v":{"v":0.1388888888888889,"d":"₪ 0.14"}},{"$f":"IFERROR(FoodTable[[#This Row],[עלות לכל מנה]]*FoodTable[[#This Row],[מנות לכל מבוגר]],\"\")","v":{"v":0.2777777777777778,"d":"₪ 0.28"}},"2 שפופרות גדולות"]
[null,"צלפים",{"v":12,"d":"₪ 12.00"},1,2,{"$f":"(FoodTable[[#This Row],[מנות לכל ילד]]*ChildrenTotal)+(FoodTable[[#This Row],[מנות לכל מבוגר]]*AdultTotal)","v":72},{"$f":"IFERROR(FoodTable[[#This Row],[עלות כוללת]]/FoodTable[[#This Row],[סה\"כ מנות]],\"\")","v":{"v":0.16666666666666666,"d":"₪ 0.17"}},{"$f":"IFERROR(FoodTable[[#This Row],[עלות לכל מנה]]*FoodTable[[#This Row],[מנות לכל ילד]],\"\")","v":{"v":0.16666666666666666,"d":"₪ 0.17"}},{"$f":"IFERROR(FoodTable[[#This Row],[עלות לכל מנה]]*FoodTable[[#This Row],[מנות לכל מבוגר]],\"\")","v":{"v":0.3333333333333333,"d":"₪ 0.33"}},"3 צנצנות"]
[null,"כנפיים",{"v":45,"d":"₪ 45.00"},2,4,{"$f":"(FoodTable[[#This Row],[מנות לכל ילד]]*ChildrenTotal)+(FoodTable[[#This Row],[מנות לכל מבוגר]]*AdultTotal)","v":144},{"$f":"IFERROR(FoodTable[[#This Row],[עלות כוללת]]/FoodTable[[#This Row],[סה\"כ מנות]],\"\")","v":{"v":0.3125,"d":"₪ 0.31"}},{"$f":"IFERROR(FoodTable[[#This Row],[עלות לכל מנה]]*FoodTable[[#This Row],[מנות לכל ילד]],\"\")","v":{"v":0.625,"d":"₪ 0.63"}},{"$f":"IFERROR(FoodTable[[#This Row],[עלות לכל מנה]]*FoodTable[[#This Row],[מנות לכל מבוגר]],\"\")","v":{"v":1.25,"d":"₪ 1.25"}},"לקנות מהקצביה המקומית"]
[null,"חומוס",{"v":10,"d":"₪ 10.00"},4,6,{"$f":"(FoodTable[[#This Row],[מנות לכל ילד]]*ChildrenTotal)+(FoodTable[[#This Row],[מנות לכל מבוגר]]*AdultTotal)","v":236},{"$f":"IFERROR(FoodTable[[#This Row],[עלות כוללת]]/FoodTable[[#This Row],[סה\"כ מנות]],\"\")","v":{"v":0.0423728813559322,"d":"₪ 0.04"}},{"$f":"IFERROR(FoodTable[[#This Row],[עלות לכל מנה]]*FoodTable[[#This Row],[מנות לכל ילד]],\"\")","v":{"v":0.1694915254237288,"d":"₪ 0.17"}},{"$f":"IFERROR(FoodTable[[#This Row],[עלות לכל מנה]]*FoodTable[[#This Row],[מנות לכל מבוגר]],\"\")","v":{"v":0.2542372881355932,"d":"₪ 0.25"}},"להכין לילה לפני"]
[null,"פיתות אפויות עם פרמז'ן",{"v":14,"d":"₪ 14.00"},4,6,{"$f":"(FoodTable[[#This Row],[מנות לכל ילד]]*ChildrenTotal)+(FoodTable[[#This Row],[מנות לכל מבוגר]]*AdultTotal)","v":236},{"$f":"IFERROR(FoodTable[[#This Row],[עלות כוללת]]/FoodTable[[#This Row],[סה\"כ מנות]],\"\")","v":{"v":0.059322033898305086,"d":"₪ 0.06"}},{"$f":"IFERROR(FoodTable[[#This Row],[עלות לכל מנה]]*FoodTable[[#This Row],[מנות לכל ילד]],\"\")","v":{"v":0.23728813559322035,"d":"₪ 0.24"}},{"$f":"IFERROR(FoodTable[[#This Row],[עלות לכל מנה]]*FoodTable[[#This Row],[מנות לכל מבוגר]],\"\")","v":{"v":0.3559322033898305,"d":"₪ 0.36"}},"להכין לילה לפני"]
[null,"ירקות",{"v":30,"d":"₪ 30.00"},4,10,{"$f":"(FoodTable[[#This Row],[מנות לכל ילד]]*ChildrenTotal)+(FoodTable[[#This Row],[מנות לכל מבוגר]]*AdultTotal)","v":340},{"$f":"IFERROR(FoodTable[[#This Row],[עלות כוללת]]/FoodTable[[#This Row],[סה\"כ מנות]],\"\")","v":{"v":0.08823529411764706,"d":"₪ 0.09"}},{"$f":"IFERROR(FoodTable[[#This Row],[עלות לכל מנה]]*FoodTable[[#This Row],[מנות לכל ילד]],\"\")","v":{"v":0.35294117647058826,"d":"₪ 0.35"}},{"$f":"IFERROR(FoodTable[[#This Row],[עלות לכל מנה]]*FoodTable[[#This Row],[מנות לכל מבוגר]],\"\")","v":{"v":0.8823529411764707,"d":"₪ 0.88"}},"מקלות גזר, סלרי, ברוקולי, כרובית, פלפלים אדומים וירוקים"]
[null,"כדורי גבינה",{"v":15,"d":"₪ 15.00"},5,10,{"$f":"(FoodTable[[#This Row],[מנות לכל ילד]]*ChildrenTotal)+(FoodTable[[#This Row],[מנות לכל מבוגר]]*AdultTotal)","v":360},{"$f":"IFERROR(FoodTable[[#This Row],[עלות כוללת]]/FoodTable[[#This Row],[סה\"כ מנות]],\"\")","v":{"v":0.041666666666666664,"d":"₪ 0.04"}},{"$f":"IFERROR(FoodTable[[#This Row],[עלות לכל מנה]]*FoodTable[[#This Row],[מנות לכל ילד]],\"\")","v":{"v":0.20833333333333331,"d":"₪ 0.21"}},{"$f":"IFERROR(FoodTable[[#This Row],[עלות לכל מנה]]*FoodTable[[#This Row],[מנות לכל מבוגר]],\"\")","v":{"v":0.41666666666666663,"d":"₪ 0.42"}},"מעורב: גבינת שמנת, גבינה קשה עם אגוזים"]
[null,"קרקרים",{"v":25,"d":"₪ 25.00"},5,10,{"$f":"(FoodTable[[#This Row],[מנות לכל ילד]]*ChildrenTotal)+(FoodTable[[#This Row],[מנות לכל מבוגר]]*AdultTotal)","v":360},{"$f":"IFERROR(FoodTable[[#This Row],[עלות כוללת]]/FoodTable[[#This Row],[סה\"כ מנות]],\"\")","v":{"v":0.06944444444444445,"d":"₪ 0.07"}},{"$f":"IFERROR(FoodTable[[#This Row],[עלות לכל מנה]]*FoodTable[[#This Row],[מנות לכל ילד]],\"\")","v":{"v":0.3472222222222222,"d":"₪ 0.35"}},{"$f":"IFERROR(FoodTable[[#This Row],[עלות לכל מנה]]*FoodTable[[#This Row],[מנות לכל מבוגר]],\"\")","v":{"v":0.6944444444444444,"d":"₪ 0.69"}},"מעורב"]
[null,"סך הכל",{"$f":"SUBTOTAL(109,FoodTable[עלות כוללת])","v":{"v":475,"d":"₪ 475.00"}},{"$f":"SUBTOTAL(109,FoodTable[מנות לכל ילד])","v":34.5},{"$f":"SUBTOTAL(109,FoodTable[מנות לכל מבוגר])","v":65.5},{"$f":"SUBTOTAL(109,FoodTable[סה\"כ מנות])","v":2393},{"$f":"SUBTOTAL(109,FoodTable[עלות לכל מנה])","v":{"v":6.915706603622084,"d":"₪ 6.92"}},{"$f":"SUBTOTAL(109,FoodTable[עלות לכל ילד])","v":{"v":7.252884190656953,"d":"₪ 7.25"}},{"$f":"SUBTOTAL(109,FoodTable[עלות לכל מבוגר])","v":{"v":12.690089084110037,"d":"₪ 12.69"}}]

{"sheet":"דברים חיוניים אחרים","index":3,"n_rows":32,"n_cols":5,"rows_kept":32,"merged":[[15,1,15,4],[24,1,24,4]]}
[]
[]
[null,"דברים חיוניים אחרים"]
[]
[]
[null,"ציוד וחומרים","עלות","נרכש","הערות"]
[null,"השכרת חדר/אולם",{"v":250,"d":"₪ 250.00"},"כן"]
[null,"מפות",{"v":30,"d":"₪ 30.00"},"כן","שכירות"]
[null,"שולחנות וכיסאות",{"v":0,"d":"₪ 0.00"},null,"כלול בהשכרת האולם"]
[null,"מפיות למשקאות",{"v":25,"d":"₪ 25.00"}]
[null,"מפיות לארוחה",{"v":20,"d":"₪ 20.00"},null,"שכירות"]
[null,"סכו\"ם",{"v":50,"d":"₪ 50.00"},null,"שכירות"]
[null,"כלי זכוכית",{"v":25,"d":"₪ 25.00"},null,"שכירות"]
[null,"סך הכל",{"$f":"SUBTOTAL(109,Table1Budget[עלות])","v":{"v":400,"d":"₪ 400.00"}}]
[]
[]
[]
[null,"קישוטים","עלות","נרכש","הערות"]
[null,"בלונים",{"v":25,"d":"₪ 25.00"}]
[null,"מכל הליום",{"v":50,"d":"₪ 50.00"},null,"שכירות"]
[null,"קישוטים מרכזיים",{"v":100,"d":"₪ 100.00"},"כן","10 סה\"כ"]
[null,"אגרטלי זכוכית",{"v":0,"d":"₪ 0.00"},null,"להלוות מסיגל"]
[null,"סך הכל",{"$f":"SUBTOTAL(109,Table2Budget[עלות])","v":{"v":175,"d":"₪ 175.00"}}]
[]
[]
[]
[null,"אחר","עלות","נרכש","הערות"]
[null,"הזמנות",{"v":50,"d":"₪ 50.00"},"כן"]
[null,"דברי דואר",{"v":60,"d":"₪ 60.00"},"כן"]
[null,"צלם",{"v":125,"d":"₪ 125.00"},null,"שעתיים (14:00 עד 16:00)"]
[null,"מתנות לאורחים",{"v":50,"d":"₪ 50.00"}]
[null,"סך הכל",{"$f":"SUBTOTAL(109,Table3Budget[עלות])","v":{"v":285,"d":"₪ 285.00"}}]

{"sheet":"סידור ישיבה","index":4,"n_rows":43,"n_cols":34,"rows_kept":43,"merged":[[35,0,35,13],[35,16,35,33]]}
["סידור ישיבה"]
{"$rows_empty":33}
[{"$nulls":33},"*ריבוע אחד שווה לכמטר רבוע אחד"]
["הערות",{"$nulls":15},{"$f":"\" סהכ אורחים שאישרו את הגעתם:  \"&ConfirmedGuests","v":" סהכ אורחים שאישרו את הגעתם:  46"}]
[{"$nulls":16},"ניתן להשתמש בכל אחד מארגוני השולחן הבאים:"]
[{"$nulls":17},{"$f":"\"שולחנות עגולים של \"&ROUNDUP(ConfirmedGuests/6,0)&\" 1.35 מ' (6 כיסאות)\"","v":"שולחנות עגולים של 8 1.35 מ' (6 כיסאות)"}]
[{"$nulls":17},{"$f":"\"שולחנות עגולים של \"&ROUNDUP(ConfirmedGuests/8,0) &\" מטר וחצי (8 כיסאות)\"","v":"שולחנות עגולים של 6 מטר וחצי (8 כיסאות)"}]
[{"$nulls":17},{"$f":"\" שולחנות עגולים של \"&ROUNDUP(ConfirmedGuests/10,0)&\" 1.8 מ' (10 כיסאות)\"","v":" שולחנות עגולים של 5 1.8 מ' (10 כיסאות)"}]
[{"$nulls":17},{"$f":"\"שולחנות מרובעים \"&ROUNDUP(ConfirmedGuests/6,0)& \" בגודל 0.75 מ' על 1.8 מ' (6 כיסאות)\"","v":"שולחנות מרובעים 8 בגודל 0.75 מ' על 1.8 מ' (6 כיסאות)"}]
[{"$nulls":17},{"$f":"\"שולחנות מרובעים \"&ROUNDUP(ConfirmedGuests/8,0)&\" בגודל 0.75 מ' על 2.4 מ' (8 כיסאות)\"","v":"שולחנות מרובעים 6 בגודל 0.75 מ' על 2.4 מ' (8 כיסאות)"}]
[{"$nulls":16},"(רווח מומלץ בין השולחנות: 1.5 מ')"]